[Event "Late-Titled-Tuesday-Blitz-October-17-2023"]
[Site "Chess.com"]
[Date "2023.10.17"]
[Round "9"]
[White "tptagain"]
[Black "mishanick"]
[Result "1-0"]
[WhiteElo "2927"]
[BlackElo "3025"]
[TimeControl "180+1"]
[EndTime "15:41:29 PDT"]
[Termination "tptagain won on time"]

1. d4 {[%clk 0:03:00.9]} 1... Nf6 {[%clk 0:02:59.9]} 2. Nf3 {[%clk 0:03:01.4]}
2... d5 {[%clk 0:03:00.2]} 3. e3 {[%clk 0:02:57.1]} 3... e6 {[%clk 0:03:00.4]}
4. Bd3 {[%clk 0:02:56.8]} 4... Be7 {[%clk 0:02:59.6]} 5. O-O {[%clk 0:02:56.3]}
5... O-O {[%clk 0:03:00.2]} 6. Nbd2 {[%clk 0:02:54.6]} 6... c5 {[%clk
0:02:58.5]} 7. b3 {[%clk 0:02:52.3]} 7... b6 {[%clk 0:02:56.2]} 8. Bb2 {[%clk
0:02:51.5]} 8... Bb7 {[%clk 0:02:56.9]} 9. dxc5 {[%clk 0:02:48.2]} 9... bxc5
{[%clk 0:02:56.5]} 10. c4 {[%clk 0:02:46.2]} 10... Nc6 {[%clk 0:02:46.9]} 11. a3
{[%clk 0:02:41]} 11... a5 {[%clk 0:02:23.8]} 12. cxd5 {[%clk 0:02:38.2]} 12...
exd5 {[%clk 0:02:24.7]} 13. Qc2 {[%clk 0:02:36.7]} 13... h6 {[%clk 0:02:21.4]}
14. Rfd1 {[%clk 0:02:29.6]} 14... Qb6 {[%clk 0:02:14.1]} 15. Rab1 {[%clk
0:02:19.6]} 15... Rfd8 {[%clk 0:02:11.4]} 16. Nh4 {[%clk 0:02:10.2]} 16... d4
{[%clk 0:02:07.7]} 17. Nc4 {[%clk 0:01:57.9]} 17... Qc7 {[%clk 0:02:07.3]} 18.
Nf5 {[%clk 0:01:56.5]} 18... Bf8 {[%clk 0:02:06]} 19. Be2 {[%clk 0:01:36.6]}
19... Ne5 {[%clk 0:00:58.7]} 20. Nxe5 {[%clk 0:01:13.7]} 20... Qxe5 {[%clk
0:00:59.6]} 21. exd4 {[%clk 0:01:04.7]} 21... Qe4 {[%clk 0:01:00.1]} 22. Qxe4
{[%clk 0:00:55.2]} 22... Bxe4 {[%clk 0:01:01]} 23. Bd3 {[%clk 0:00:54.5]} 23...
Rab8 {[%clk 0:01:01.8]} 24. Ng3 {[%clk 0:00:39.2]} 24... Bxd3 {[%clk 0:00:32.3]}
25. Rxd3 {[%clk 0:00:40.1]} 25... a4 {[%clk 0:00:33.1]} 26. Ba1 {[%clk
0:00:29.4]} 26... c4 {[%clk 0:00:32.1]} 27. Rc3 {[%clk 0:00:27.2]} 27... cxb3
{[%clk 0:00:32.4]} 28. Rc4 {[%clk 0:00:27.4]} 28... Ra8 {[%clk 0:00:25.1]} 29.
Bb2 {[%clk 0:00:21.4]} 29... Nd5 {[%clk 0:00:25.3]} 30. Ne4 {[%clk 0:00:21.7]}
30... Re8 {[%clk 0:00:23.7]} 31. Nc5 {[%clk 0:00:18.3]} 31... Re2 {[%clk
0:00:14.7]} 32. Kf1 {[%clk 0:00:15.8]} 32... Rae8 {[%clk 0:00:12.3]} 33. Rxa4
{[%clk 0:00:13.3]} 33... Rc2 {[%clk 0:00:08.4]} 34. Bc1 {[%clk 0:00:05.5]} 34...
Ree2 {[%clk 0:00:07.8]} 35. Nd3 {[%clk 0:00:05.4]} 35... Nc3 {[%clk 0:00:04]}
36. Rxb3 {[%clk 0:00:04.9]} 36... Ne4 {[%clk 0:00:04.7]} 37. Ra8 {[%clk
0:00:03.2]} 37... g5 {[%clk 0:00:02.3]} 38. Be3 {[%clk 0:00:02.2]} 38... Ra2
{[%clk 0:00:01.4]} 39. Ne1 {[%clk 0:00:02.4]} 1-0

[Event "Late-Titled-Tuesday-Blitz-October-17-2023"]
[Site "Chess.com"]
[Date "2023.10.17"]
[Round "9"]
[White "imdvb6307"]
[Black "lluiss"]
[Result "1-0"]
[WhiteElo "2493"]
[BlackElo "2204"]
[TimeControl "180+1"]
[EndTime "15:41:29 PDT"]
[Termination "imdvb6307 won on time"]

1. d4 {[%clk 0:03:00.9]} 1... Nf6 {[%clk 0:02:58.8]} 2. Nf3 {[%clk 0:03:00.4]}
2... g6 {[%clk 0:02:58.4]} 3. c4 {[%clk 0:02:59.9]} 3... Bg7 {[%clk 0:02:58.4]}
4. Nc3 {[%clk 0:03:00.1]} 4... d5 {[%clk 0:02:59]} 5. Bf4 {[%clk 0:03:00.1]}
5... O-O {[%clk 0:02:57.9]} 6. Rc1 {[%clk 0:03:00]} 6... dxc4 {[%clk 0:02:52.7]}
7. e3 {[%clk 0:03:00.1]} 7... Be6 {[%clk 0:02:47.8]} 8. Nd2 {[%clk 0:01:50.1]}
8... c5 {[%clk 0:02:21.2]} 9. dxc5 {[%clk 0:01:45.9]} 9... Na6 {[%clk 0:02:20]}
10. Bxc4 {[%clk 0:01:08.2]} 10... Bxc4 {[%clk 0:02:18.9]} 11. Nxc4 {[%clk
0:01:07.8]} 11... Nxc5 {[%clk 0:02:19.5]} 12. Qxd8 {[%clk 0:01:07.9]} 12...
Rfxd8 {[%clk 0:02:13.2]} 13. Ke2 {[%clk 0:01:06.9]} 13... Nd3 {[%clk 0:02:07.4]}
14. Rcd1 {[%clk 0:01:04.1]} 14... Nxf4+ {[%clk 0:02:05]} 15. exf4 {[%clk
0:01:04.2]} 15... Nh5 {[%clk 0:01:56.5]} 16. g3 {[%clk 0:00:52.9]} 16... Bxc3
{[%clk 0:01:56.2]} 17. bxc3 {[%clk 0:00:53.2]} 17... Rac8 {[%clk 0:01:48.9]} 18.
Rxd8+ {[%clk 0:00:52.8]} 18... Rxd8 {[%clk 0:01:48.8]} 19. Na5 {[%clk
0:00:53.1]} 19... Rd7 {[%clk 0:01:17.7]} 20. Rd1 {[%clk 0:00:51.1]} 20... Rc7
{[%clk 0:01:17.2]} 21. Rd8+ {[%clk 0:00:48.3]} 21... Kg7 {[%clk 0:01:17.2]} 22.
Kd3 {[%clk 0:00:48.1]} 22... Nf6 {[%clk 0:01:13.4]} 23. c4 {[%clk 0:00:46.1]}
23... Ng4 {[%clk 0:01:10.6]} 24. f3 {[%clk 0:00:30.1]} 24... Nxh2 {[%clk
0:00:48.3]} 25. Ke2 {[%clk 0:00:29.6]} 25... b6 {[%clk 0:00:48.7]} 26. Nb3
{[%clk 0:00:30.1]} 26... Rxc4 {[%clk 0:00:48.6]} 27. Rd2 {[%clk 0:00:30]} 27...
Rc3 {[%clk 0:00:33.4]} 28. Nd4 {[%clk 0:00:27.6]} 28... f6 {[%clk 0:00:28.2]}
29. Rc2 {[%clk 0:00:17.1]} 29... Ra3 {[%clk 0:00:22.6]} 30. Nb5 {[%clk
0:00:17.1]} 30... Ra5 {[%clk 0:00:16]} 31. Nd4 {[%clk 0:00:17.2]} 31... e5
{[%clk 0:00:14.9]} 32. fxe5 {[%clk 0:00:13.2]} 32... fxe5 {[%clk 0:00:13.2]} 33.
Nb3 {[%clk 0:00:13.1]} 33... Ra3 {[%clk 0:00:09.5]} 34. Kf2 {[%clk 0:00:12.9]}
34... e4 {[%clk 0:00:09.2]} 35. fxe4 {[%clk 0:00:12.8]} 35... Ng4+ {[%clk
0:00:09.5]} 36. Kf3 {[%clk 0:00:12.5]} 36... h5 {[%clk 0:00:08.9]} 37. Kf4
{[%clk 0:00:12]} 37... Nf6 {[%clk 0:00:04.8]} 38. Rc7+ {[%clk 0:00:09.8]} 38...
Kh6 {[%clk 0:00:03.7]} 39. Rc6 {[%clk 0:00:09.7]} 39... Ng8 {[%clk 0:00:02]} 40.
Rc2 {[%clk 0:00:07.8]} 40... Ra4 {[%clk 0:00:01.4]} 41. Ke5 {[%clk 0:00:07.5]}
41... Ne7 {[%clk 0:00:01.3]} 42. Ke6 {[%clk 0:00:07.2]} 42... Ng8 {[%clk
0:00:01.1]} 43. e5 {[%clk 0:00:07.2]} 43... Kg7 {[%clk 0:00:01.2]} 44. Rc7+
{[%clk 0:00:06.2]} 1-0

[Event "Late-Titled-Tuesday-Blitz-October-17-2023"]
[Site "Chess.com"]
[Date "2023.10.17"]
[Round "9"]
[White "FuenfgegenWilly"]
[Black "Dacean99"]
[Result "1/2-1/2"]
[WhiteElo "2408"]
[BlackElo "2634"]
[TimeControl "180+1"]
[EndTime "15:41:33 PDT"]
[Termination "Game drawn by repetition"]

1. Nf3 {[%clk 0:03:00.9]} 1... d5 {[%clk 0:02:13.8]} 2. b3 {[%clk 0:02:58.7]}
2... Nf6 {[%clk 0:02:14.2]} 3. Bb2 {[%clk 0:02:58.9]} 3... c5 {[%clk 0:02:14.4]}
4. e3 {[%clk 0:02:59.3]} 4... Nc6 {[%clk 0:02:14.6]} 5. Bb5 {[%clk 0:02:59.4]}
5... Bd7 {[%clk 0:02:14.1]} 6. Bxc6 {[%clk 0:02:58.9]} 6... Bxc6 {[%clk
0:02:15]} 7. d3 {[%clk 0:02:59.5]} 7... e6 {[%clk 0:02:11.4]} 8. Nbd2 {[%clk
0:02:59.9]} 8... Bd6 {[%clk 0:02:11.2]} 9. Qe2 {[%clk 0:03:00.8]} 9... O-O
{[%clk 0:02:10.8]} 10. e4 {[%clk 0:03:01.7]} 10... Be7 {[%clk 0:02:07.7]} 11.
O-O {[%clk 0:03:01.1]} 11... Rc8 {[%clk 0:02:07.1]} 12. a4 {[%clk 0:02:59.6]}
12... a6 {[%clk 0:02:07.1]} 13. a5 {[%clk 0:02:55.8]} 13... d4 {[%clk
0:02:07.3]} 14. Nc4 {[%clk 0:02:54.8]} 14... Qc7 {[%clk 0:02:06.2]} 15. Nfe5
{[%clk 0:02:54.9]} 15... Bb5 {[%clk 0:02:05.2]} 16. Bc1 {[%clk 0:02:52.3]} 16...
Bxc4 {[%clk 0:02:01.7]} 17. Nxc4 {[%clk 0:02:52.2]} 17... e5 {[%clk 0:02:02.3]}
18. f4 {[%clk 0:02:51.8]} 18... Nd7 {[%clk 0:02:01.7]} 19. Qh5 {[%clk
0:02:29.1]} 19... Bf6 {[%clk 0:01:55.5]} 20. Rf3 {[%clk 0:02:09.2]} 20... g6
{[%clk 0:01:53.6]} 21. Qg4 {[%clk 0:02:08.7]} 21... Rce8 {[%clk 0:01:49.4]} 22.
f5 {[%clk 0:02:01.8]} 22... Bg7 {[%clk 0:01:46.7]} 23. Qh4 {[%clk 0:01:57.1]}
23... Qc6 {[%clk 0:01:41.6]} 24. Rh3 {[%clk 0:01:55.9]} 24... h5 {[%clk
0:01:40.7]} 25. g4 {[%clk 0:01:52.5]} 25... Bf6 {[%clk 0:01:37.3]} 26. Bg5
{[%clk 0:01:19.6]} 26... Bxg5 {[%clk 0:01:36.1]} 27. Qxg5 {[%clk 0:01:20.5]}
27... Qf6 {[%clk 0:01:35.8]} 28. Qh6 {[%clk 0:01:20.6]} 28... Qg7 {[%clk
0:01:29.1]} 29. Qxg7+ {[%clk 0:01:19.5]} 29... Kxg7 {[%clk 0:01:30]} 30. gxh5
{[%clk 0:01:19.8]} 30... gxf5 {[%clk 0:01:26]} 31. Nd6 {[%clk 0:01:19.8]} 31...
f4 {[%clk 0:01:12.3]} 32. Kf2 {[%clk 0:01:00.3]} 32... Re6 {[%clk 0:01:11.3]}
33. Rg1+ {[%clk 0:00:59.2]} 33... Kh7 {[%clk 0:01:11.5]} 34. Nf5 {[%clk
0:00:54.1]} 34... Rg8 {[%clk 0:01:04.1]} 35. Rxg8 {[%clk 0:00:39.4]} 35... Kxg8
{[%clk 0:01:05]} 36. h6 {[%clk 0:00:39.3]} 36... Kh7 {[%clk 0:01:04.1]} 37. Rh5
{[%clk 0:00:39]} 37... Nf8 {[%clk 0:01:01.5]} 38. Rg5 {[%clk 0:00:37.2]} 38...
Ng6 {[%clk 0:00:59.8]} 39. h4 {[%clk 0:00:37.7]} 39... f6 {[%clk 0:00:53.4]} 40.
Rg1 {[%clk 0:00:37.4]} 40... b6 {[%clk 0:00:29.7]} 41. h5 {[%clk 0:00:37.6]}
41... Nf8 {[%clk 0:00:28.6]} 42. Rg7+ {[%clk 0:00:36.2]} 42... Kh8 {[%clk
0:00:28.6]} 43. Rf7 {[%clk 0:00:32]} 43... Kg8 {[%clk 0:00:18.8]} 44. Rxf8+
{[%clk 0:00:21.2]} 44... Kh7 {[%clk 0:00:15.4]} 45. Rf7+ {[%clk 0:00:20.3]}
45... Kh8 {[%clk 0:00:13.6]} 46. axb6 {[%clk 0:00:20.1]} 46... Rxb6 {[%clk
0:00:13]} 47. Ra7 {[%clk 0:00:19.4]} 47... c4 {[%clk 0:00:11.4]} 48. Ra8+ {[%clk
0:00:17.4]} 48... Kh7 {[%clk 0:00:11.2]} 49. Ra7+ {[%clk 0:00:17.6]} 49... Kh8
{[%clk 0:00:11.6]} 50. Ne7 {[%clk 0:00:16]} 50... Kh7 {[%clk 0:00:09.5]} 51.
Nf5+ {[%clk 0:00:13.4]} 51... Kh8 {[%clk 0:00:09.4]} 1/2-1/2

[Event "Late-Titled-Tuesday-Blitz-October-17-2023"]
[Site "Chess.com"]
[Date "2023.10.17"]
[Round "9"]
[White "jaskol95"]
[Black "cthulhuuu"]
[Result "1-0"]
[WhiteElo "2577"]
[BlackElo "2413"]
[TimeControl "180+1"]
[EndTime "15:41:39 PDT"]
[Termination "jaskol95 won on time"]

1. d4 {[%clk 0:03:00.9]} 1... Nf6 {[%clk 0:03:00]} 2. Nc3 {[%clk 0:02:59]} 2...
d5 {[%clk 0:02:59.2]} 3. Bf4 {[%clk 0:02:59.3]} 3... e6 {[%clk 0:02:56.5]} 4.
Nb5 {[%clk 0:02:58.5]} 4... Na6 {[%clk 0:02:55.3]} 5. e3 {[%clk 0:02:58.1]} 5...
c5 {[%clk 0:02:22]} 6. c3 {[%clk 0:02:51.4]} 6... Be7 {[%clk 0:02:18.8]} 7. Nf3
{[%clk 0:02:51.2]} 7... O-O {[%clk 0:02:18.4]} 8. a4 {[%clk 0:02:49.8]} 8... Bd7
{[%clk 0:02:17.4]} 9. Ne5 {[%clk 0:02:49.8]} 9... Be8 {[%clk 0:02:16.6]} 10. Bd3
{[%clk 0:02:37.7]} 10... c4 {[%clk 0:02:06.4]} 11. Bc2 {[%clk 0:02:37.8]} 11...
Bxb5 {[%clk 0:01:46.9]} 12. axb5 {[%clk 0:02:37.8]} 12... Nc7 {[%clk 0:01:47.6]}
13. g4 {[%clk 0:02:26.7]} 13... Nxb5 {[%clk 0:01:35.8]} 14. g5 {[%clk
0:02:26.9]} 14... Ne4 {[%clk 0:01:31.8]} 15. Bxe4 {[%clk 0:02:16.8]} 15... dxe4
{[%clk 0:01:31.6]} 16. Nxc4 {[%clk 0:02:17.4]} 16... Bxg5 {[%clk 0:01:27.6]} 17.
Be5 {[%clk 0:02:09.9]} 17... f6 {[%clk 0:01:13]} 18. Bg3 {[%clk 0:02:08.2]}
18... Qd5 {[%clk 0:01:09.6]} 19. Nd2 {[%clk 0:02:04.6]} 19... Qc6 {[%clk
0:00:29.8]} 20. Qg4 {[%clk 0:01:45.1]} 20... e5 {[%clk 0:00:23.8]} 21. Qxe4
{[%clk 0:01:39.5]} 21... exd4 {[%clk 0:00:21.8]} 22. Qxc6 {[%clk 0:01:38.7]}
22... bxc6 {[%clk 0:00:22.7]} 23. cxd4 {[%clk 0:01:34.4]} 23... Rfe8 {[%clk
0:00:19.9]} 24. Nf3 {[%clk 0:01:14.1]} 24... Bh6 {[%clk 0:00:13.7]} 25. Ke2
{[%clk 0:01:10.3]} 25... Rad8 {[%clk 0:00:13.2]} 26. Rhd1 {[%clk 0:01:09.7]}
26... Rd7 {[%clk 0:00:12.8]} 27. Ra6 {[%clk 0:01:06.5]} 27... Nd6 {[%clk
0:00:12.7]} 28. Bxd6 {[%clk 0:01:02.3]} 28... Rxd6 {[%clk 0:00:13.6]} 29. Rxa7
{[%clk 0:01:02.9]} 29... Rb8 {[%clk 0:00:14.4]} 30. Rd2 {[%clk 0:01:01]} 30...
g6 {[%clk 0:00:10.7]} 31. Rc2 {[%clk 0:01:00.1]} 31... Bg7 {[%clk 0:00:07.7]}
32. Nd2 {[%clk 0:01:00.1]} 32... f5 {[%clk 0:00:07.8]} 33. Nc4 {[%clk
0:01:00.2]} 33... Re6 {[%clk 0:00:08.6]} 34. Kd3 {[%clk 0:00:54.6]} 34... f4
{[%clk 0:00:08.2]} 35. Rc7 {[%clk 0:00:35.3]} 35... fxe3 {[%clk 0:00:07.6]} 36.
fxe3 {[%clk 0:00:36.2]} 36... Rd8 {[%clk 0:00:07.5]} 37. Rf2 {[%clk 0:00:30.3]}
37... h5 {[%clk 0:00:04.8]} 38. Rff7 {[%clk 0:00:30.4]} 38... Bh6 {[%clk
0:00:04.2]} 39. Rfe7 {[%clk 0:00:20.3]} 39... Rxe7 {[%clk 0:00:04.5]} 40. Rxe7
{[%clk 0:00:20.6]} 40... c5 {[%clk 0:00:05.4]} 41. Ne5 {[%clk 0:00:19.4]} 41...
cxd4 {[%clk 0:00:05.8]} 42. exd4 {[%clk 0:00:20.3]} 42... Bg7 {[%clk 0:00:06]}
43. Ke4 {[%clk 0:00:20.1]} 43... Bf6 {[%clk 0:00:05.8]} 44. Re6 {[%clk
0:00:18.6]} 44... Rf8 {[%clk 0:00:04]} 45. Nd7 {[%clk 0:00:17]} 1-0

[Event "Late-Titled-Tuesday-Blitz-October-17-2023"]
[Site "Chess.com"]
[Date "2023.10.17"]
[Round "9"]
[White "esskeettit"]
[Black "Sacbutt"]
[Result "1-0"]
[WhiteElo "2495"]
[BlackElo "2241"]
[TimeControl "180+1"]
[EndTime "15:41:43 PDT"]
[Termination "esskeettit won by resignation"]

1. d4 {[%clk 0:03:00.9]} 1... Nf6 {[%clk 0:02:59.1]} 2. c4 {[%clk 0:02:58.2]}
2... e6 {[%clk 0:02:59]} 3. Nc3 {[%clk 0:02:57.8]} 3... Bb4 {[%clk 0:02:57.9]}
4. Qc2 {[%clk 0:02:58]} 4... d5 {[%clk 0:02:57.2]} 5. cxd5 {[%clk 0:02:57.8]}
5... Qxd5 {[%clk 0:02:57.2]} 6. Nf3 {[%clk 0:02:54.3]} 6... Qf5 {[%clk
0:02:55.3]} 7. Qxf5 {[%clk 0:02:53.6]} 7... exf5 {[%clk 0:02:56.2]} 8. a3 {[%clk
0:02:53.7]} 8... Bxc3+ {[%clk 0:02:55.9]} 9. bxc3 {[%clk 0:02:53.6]} 9... O-O
{[%clk 0:02:55.1]} 10. Bf4 {[%clk 0:02:48.7]} 10... c6 {[%clk 0:02:52.6]} 11. g3
{[%clk 0:02:34.5]} 11... Nbd7 {[%clk 0:02:49.7]} 12. Bg2 {[%clk 0:02:33.9]}
12... Nb6 {[%clk 0:02:49]} 13. Nd2 {[%clk 0:02:27.3]} 13... Re8 {[%clk
0:02:46.5]} 14. Be5 {[%clk 0:02:24.1]} 14... Ng4 {[%clk 0:02:33.9]} 15. Bd6
{[%clk 0:02:13.2]} 15... Be6 {[%clk 0:02:01.9]} 16. O-O {[%clk 0:01:56.9]} 16...
Bc4 {[%clk 0:01:51.2]} 17. Nxc4 {[%clk 0:01:22.2]} 17... Nxc4 {[%clk 0:01:52.1]}
18. Bf4 {[%clk 0:01:22.1]} 18... Rxe2 {[%clk 0:01:47.6]} 19. h3 {[%clk
0:01:21.5]} 19... Nf6 {[%clk 0:01:41.4]} 20. Rfb1 {[%clk 0:01:21]} 20... Re7
{[%clk 0:00:51.7]} 21. Bf1 {[%clk 0:01:20.2]} 21... Na5 {[%clk 0:00:46]} 22. Bd3
{[%clk 0:01:18.9]} 22... g6 {[%clk 0:00:40.9]} 23. Bg5 {[%clk 0:01:03.6]} 23...
Re6 {[%clk 0:00:40.7]} 24. Re1 {[%clk 0:00:37.2]} 24... Ne4 {[%clk 0:00:35.5]}
25. Bf4 {[%clk 0:00:22]} 25... Nxc3 {[%clk 0:00:31.2]} 26. Rxe6 {[%clk
0:00:21.3]} 26... fxe6 {[%clk 0:00:31]} 27. Re1 {[%clk 0:00:18.3]} 27... Nb5
{[%clk 0:00:21]} 28. Rxe6 {[%clk 0:00:16.3]} 28... Nxd4 {[%clk 0:00:19.8]} 29.
Re7 {[%clk 0:00:15.6]} 29... Kf8 {[%clk 0:00:14.9]} 30. Rxh7 {[%clk 0:00:14.6]}
30... Re8 {[%clk 0:00:12.8]} 31. Bd2 {[%clk 0:00:11.8]} 31... Nab3 {[%clk
0:00:10]} 32. Rh8+ {[%clk 0:00:11.3]} 32... Kf7 {[%clk 0:00:09.7]} 33. Bc4+
{[%clk 0:00:11.9]} 33... Kf6 {[%clk 0:00:09.1]} 34. Rxe8 {[%clk 0:00:11.2]}
34... Nxd2 {[%clk 0:00:05.4]} 35. Bd3 {[%clk 0:00:11.1]} 35... N2f3+ {[%clk
0:00:04.9]} 36. Kg2 {[%clk 0:00:11]} 36... Ne5 {[%clk 0:00:05.8]} 37. Bf1 {[%clk
0:00:10.6]} 37... Nc2 {[%clk 0:00:05.5]} 38. Rb8 {[%clk 0:00:10.8]} 38... Nxa3
{[%clk 0:00:05.7]} 39. Rxb7 {[%clk 0:00:10.2]} 39... a5 {[%clk 0:00:06.1]} 40.
Ra7 {[%clk 0:00:10.1]} 40... Nac4 {[%clk 0:00:06.5]} 41. Bxc4 {[%clk 0:00:09.5]}
41... Nxc4 {[%clk 0:00:07.4]} 42. Ra6 {[%clk 0:00:09.8]} 42... Ke5 {[%clk
0:00:06.1]} 43. Rxc6 {[%clk 0:00:10.4]} 43... a4 {[%clk 0:00:06.5]} 44. Rxg6
{[%clk 0:00:10.4]} 44... a3 {[%clk 0:00:06.9]} 45. Ra6 {[%clk 0:00:11.1]} 45...
Kd4 {[%clk 0:00:06.3]} 46. h4 {[%clk 0:00:11.7]} 46... Kc3 {[%clk 0:00:06.6]}
47. h5 {[%clk 0:00:12]} 47... Kb4 {[%clk 0:00:03.9]} 48. Rxa3 {[%clk 0:00:09.8]}
48... Kxa3 {[%clk 0:00:04.4]} 49. h6 {[%clk 0:00:10.3]} 49... Ne5 {[%clk
0:00:05]} 50. h7 {[%clk 0:00:10.6]} 50... Nf7 {[%clk 0:00:05.4]} 51. Kf3 {[%clk
0:00:11.2]} 51... Kb4 {[%clk 0:00:05.9]} 52. Kf4 {[%clk 0:00:11.7]} 52... Kc5
{[%clk 0:00:04.8]} 53. Kxf5 {[%clk 0:00:12.1]} 53... Kd6 {[%clk 0:00:05.1]} 54.
Kg6 {[%clk 0:00:12.2]} 54... Ke7 {[%clk 0:00:04.4]} 55. Kg7 {[%clk 0:00:12.3]}
1-0

[Event "Late-Titled-Tuesday-Blitz-October-17-2023"]
[Site "Chess.com"]
[Date "2023.10.17"]
[Round "9"]
[White "Alphafischer2019"]
[Black "marik_spb"]
[Result "0-1"]
[WhiteElo "2567"]
[BlackElo "2433"]
[TimeControl "180+1"]
[EndTime "15:41:49 PDT"]
[Termination "marik_spb won by checkmate"]

1. e4 {[%clk 0:03:00.9]} 1... c6 {[%clk 0:02:59.6]} 2. d4 {[%clk 0:02:59.9]}
2... d5 {[%clk 0:03:00.3]} 3. Nc3 {[%clk 0:03:00.7]} 3... dxe4 {[%clk
0:03:00.3]} 4. Nxe4 {[%clk 0:03:01.6]} 4... Nf6 {[%clk 0:03:01.2]} 5. Nxf6+
{[%clk 0:03:01.7]} 5... exf6 {[%clk 0:03:02.1]} 6. Nf3 {[%clk 0:02:59.9]} 6...
Bd6 {[%clk 0:03:01.6]} 7. Bd3 {[%clk 0:03:00.1]} 7... Na6 {[%clk 0:02:57.2]} 8.
c3 {[%clk 0:02:58.2]} 8... Nc7 {[%clk 0:02:56.1]} 9. Qc2 {[%clk 0:02:56.9]} 9...
h5 {[%clk 0:02:55.4]} 10. O-O {[%clk 0:02:56.5]} 10... Nd5 {[%clk 0:02:48.9]}
11. Re1+ {[%clk 0:02:55.9]} 11... Kf8 {[%clk 0:02:48.9]} 12. a3 {[%clk
0:02:50.8]} 12... h4 {[%clk 0:02:46]} 13. h3 {[%clk 0:02:50.8]} 13... Bc7 {[%clk
0:02:38.3]} 14. c4 {[%clk 0:02:48]} 14... Ne7 {[%clk 0:02:33.6]} 15. b4 {[%clk
0:02:33]} 15... g5 {[%clk 0:02:20.4]} 16. Bb2 {[%clk 0:01:54.3]} 16... g4 {[%clk
0:02:19.5]} 17. hxg4 {[%clk 0:01:52.8]} 17... Bxg4 {[%clk 0:02:18.9]} 18. Nh2
{[%clk 0:01:52.8]} 18... Bxh2+ {[%clk 0:01:33.8]} 19. Kh1 {[%clk 0:01:51.7]}
19... Bc7 {[%clk 0:01:29.1]} 20. Re4 {[%clk 0:01:25]} 20... Qd6 {[%clk
0:01:24.5]} 21. f4 {[%clk 0:01:20.9]} 21... Bf5 {[%clk 0:01:22.3]} 22. c5 {[%clk
0:01:20.6]} 22... Qd8 {[%clk 0:01:12.2]} 23. Re3 {[%clk 0:01:15]} 23... Nd5
{[%clk 0:01:06.9]} 24. Rf3 {[%clk 0:01:12]} 24... Bg4 {[%clk 0:00:50.9]} 25. Rf2
{[%clk 0:01:06.2]} 25... Qd7 {[%clk 0:00:38]} 26. Bc1 {[%clk 0:00:58.6]} 26...
Re8 {[%clk 0:00:36.6]} 27. Bd2 {[%clk 0:00:58]} 27... h3 {[%clk 0:00:26.9]} 28.
g3 {[%clk 0:00:57.4]} 28... Ne3 {[%clk 0:00:25.3]} 29. Qc3 {[%clk 0:00:48.4]}
29... h2 {[%clk 0:00:15.9]} 30. Bc4 {[%clk 0:00:34]} 30... Nxc4 {[%clk
0:00:13.3]} 31. Qxc4 {[%clk 0:00:34.9]} 31... Qd5+ {[%clk 0:00:08]} 32. Qxd5
{[%clk 0:00:34.1]} 32... cxd5 {[%clk 0:00:08.9]} 33. Re1 {[%clk 0:00:31.4]}
33... Re4 {[%clk 0:00:06.3]} 34. Rxe4 {[%clk 0:00:21.7]} 34... dxe4 {[%clk
0:00:07.2]} 35. Rxh2 {[%clk 0:00:21.5]} 35... Bf3+ {[%clk 0:00:07.2]} 36. Kg1
{[%clk 0:00:22]} 36... Rxh2 {[%clk 0:00:06]} 37. Kxh2 {[%clk 0:00:22.9]} 37...
f5 {[%clk 0:00:06.2]} 38. d5 {[%clk 0:00:23]} 38... Ke8 {[%clk 0:00:06]} 39. Be3
{[%clk 0:00:22.4]} 39... Kd7 {[%clk 0:00:05.8]} 40. Kg1 {[%clk 0:00:22.2]} 40...
a6 {[%clk 0:00:03.9]} 41. Kf2 {[%clk 0:00:20.8]} 41... Bd1 {[%clk 0:00:02.6]}
42. Bd4 {[%clk 0:00:19.7]} 42... Bb3 {[%clk 0:00:02.1]} 43. d6 {[%clk
0:00:20.3]} 43... Bd8 {[%clk 0:00:02.2]} 44. Ke3 {[%clk 0:00:20.6]} 44... Kc6
{[%clk 0:00:02.1]} 45. Bb2 {[%clk 0:00:20.9]} 45... Kd5 {[%clk 0:00:02.3]} 46.
Be5 {[%clk 0:00:20.8]} 46... Kc4 {[%clk 0:00:02.2]} 47. Ba1 {[%clk 0:00:20.5]}
47... Bc2 {[%clk 0:00:02.4]} 48. Bb2 {[%clk 0:00:19.8]} 48... Kb3 {[%clk
0:00:02.5]} 49. Bc1 {[%clk 0:00:19.9]} 49... Bd3 {[%clk 0:00:02.9]} 50. Kd4
{[%clk 0:00:20.6]} 50... Bf6+ {[%clk 0:00:02.7]} 51. Ke3 {[%clk 0:00:21.1]}
51... Kc3 {[%clk 0:00:01.7]} 52. d7 {[%clk 0:00:17.9]} 52... Bd4# {[%clk
0:00:02]} 0-1